[Event "CZE-ch U16 Girls 2023"]
[Site "Teplice"]
[Date "2023.03.16"]
[Round "7.4"]
[White "Archlebova, Stela"]
[Black "Janouskova, Adela"]
[Result "0-1"]
[ECO "B51"]
[WhiteElo "1360"]
[BlackElo "1558"]
[Annotator "NA RC COMBH"]
[PlyCount "62"]
[EventDate "2023.03.09"]
[EventType "swiss"]
[EventCountry "CZE"]
[SourceTitle "playchess.com"]
[Source "ChessBase"]
[SourceQuality "1"]
[TimeControl "40/5400+30:1800+30"]

1. e4 {[%emt 0:00:04]} c5 {[%emt 0:00:06]} 2. Nf3 {[%emt 0:00:14]} d6 {[%emt 0:00:24]} 3. Bb5+ {[%emt 0:00:22]} Nc6 {[%emt 0:00:34]} 4. O-O {[%emt 0:00:12]} Bd7 {[%emt 0:01:31]} 5. d3 {[%emt 0:00:37]} g6 {[%emt 0:00:43]} 6. Be3 {[%emt 0:03:06]} Bg7 {[%emt 0:00:41]} 7. Qc1 {[%emt 0:01:46]} Nf6 {[%emt 0:02:35]} 8. Bh6 {[%emt 0:02:19]} O-O {[%emt 0:00:15]} 9. Bxg7 {[%emt 0:00:08]} Kxg7 {[%emt 0:00:02]} 10. Nc3 {[%emt 0:02:18]} a6 {[%emt 0:01:48]} 11. Bxc6 {[%emt 0:00:11]} Bxc6 {[%emt 0:00:12]} 12. Re1 {[%emt 0:01:07]} e5 {[%emt 0:07:01]} 13. Qd2 {[%emt 0:02:21]} Qd7 {[%emt 0:02:12]} 14. Rad1 {[%emt 0:06:14]} Nh5 {[%emt 0:03:29]} 15. Ne2 {[%emt 0:03:30]} f5 {[%emt 0:04:59]} 16. Ng3 {[%emt 0:03:33]} Nxg3 {[%emt 0:01:24]} 17. hxg3 {[%emt 0:00:10]} f4 {[%emt 0:01:52]} 18. gxf4 {[%emt 0:00:36]} Rxf4 {[%emt 0:00:31]} 19. c3 {[%emt 0:01:00]} Qg4 {[%emt 0:01:57]} 20. d4 {[%emt 0:04:09]} Rxf3 {[%emt 0:02:33]} 21. Kf1 {[%emt 0:02:29]} Rf6 {[%emt 0:02:37]} 22. dxe5 {[%emt 0:04:22]} dxe5 {[%emt 0:00:08]} 23. Qd3 {[%emt 0:03:38]} Raf8 {[%emt 0:02:09]} 24. Re2 {[%emt 0:00:29]} Qh4 {[%emt 0:00:19]} 25. Kg1 {[%emt 0:01:37]} Rxf2 {[%emt 0:00:42]} 26. Rxf2 {[%emt 0:00:07]} Qxf2+ {[%emt 0:00:11]} 27. Kh1 {[%emt 0:00:05]} Rf4 {[%emt 0:00:42]} 28. g3 {[%emt 0:00:43]} Bxe4+ {[%emt 0:00:28]} 29. Qxe4 {[%emt 0:00:07]} Rxe4 {[%emt 0:00:04]} 30. c4 {[%emt 0:01:22]} Re2 {[%emt 0:00:22]} 31. g4 {[%emt 0:00:22]} Qh2# {[%emt 0:00:07]} 0-1

[Event "CZE-ch U16 Girls 2023"]
[Site "Teplice"]
[Date "2023.03.16"]
[Round "7.5"]
[White "Dobsa, Emma"]
[Black "Dudkova, Josefina"]
[Result "1/2-1/2"]
[ECO "B01"]
[WhiteElo "1449"]
[BlackElo "1519"]
[Annotator "NA RC COMBH"]
[PlyCount "116"]
[EventDate "2023.03.09"]
[EventType "swiss"]
[EventCountry "CZE"]
[SourceTitle "playchess.com"]
[Source "ChessBase"]
[SourceQuality "1"]
[TimeControl "40/5400+30:1800+30"]

1. e4 {[%emt 0:00:09]} d5 {[%emt 0:00:12]} 2. exd5 {[%emt 0:00:07]} Nf6 {[%emt 0:00:10]} 3. d4 {[%emt 0:00:15]} Bg4 {[%emt 0:00:09]} 4. Bb5+ {[%emt 0:00:08]} Nbd7 {[%emt 0:12:27]} 5. f3 {[%emt 0:04:38]} Bf5 {[%emt 0:00:17]} 6. Nc3 {[%emt 0:00:13]} a6 {[%emt 0:03:04]} 7. Ba4 {[%emt 0:00:54]} b5 {[%emt 0:01:22]} 8. Bb3 {[%emt 0:00:06]} Nb6 {[%emt 0:00:16]} 9. Nge2 {[%emt 0:00:31]} Nbxd5 {[%emt 0:01:24]} 10. Nxd5 {[%emt 0:00:17]} Nxd5 {[%emt 0:00:01]} 11. O-O {[%emt 0:00:12]} e6 {[%emt 0:02:29]} 12. Ng3 {[%emt 0:00:09]} Bg6 {[%emt 0:00:47]} 13. f4 {[%emt 0:00:05]} Nf6 {[%emt 0:24:17]} 14. f5 {[%emt 0:02:56]} exf5 {[%emt 0:00:28]} 15. Nxf5 {[%emt 0:00:05]} Bxf5 {[%emt 0:02:37]} 16. Rxf5 {[%emt 0:00:02]} Be7 {[%emt 0:01:43]} 17. a4 {[%emt 0:07:49]} c6 {[%emt 0:09:36]} 18. Be3 {[%emt 0:02:02]} O-O {[%emt 0:02:10]} 19. Qf3 {[%emt 0:01:16]} Qd7 {[%emt 0:01:19]} 20. Rf1 {[%emt 0:09:58]} Qc7 {[%emt 0:08:37]} 21. g4 {[%emt 0:03:28]} Bd6 {[%emt 0:07:33]} 22. Rxf6 {[%emt 0:14:46]} gxf6 {[%emt 0:05:36]} 23. Qxf6 {[%emt 0:00:30]} Qe7 {[%emt 0:03:46]} 24. Qh6 {[%emt 0:00:18]} Rae8 {[%emt 0:03:35]} 25. Bg5 {[%emt 0:11:12]} Bxh2+ {[%emt 0:02:42]} 26. Kg2 {[%emt 0:10:13]} Qe2+ {[%emt 0:02:34]} 27. Rf2 {[%emt 0:00:24]} Qxg4+ {[%emt 0:00:21]} 28. Kxh2 {[%emt 0:00:16]} Re2 {[%emt 0:01:22]} 29. Be3 {[%emt 0:05:32]} Rxf2+ {[%emt 0:01:04]} 30. Bxf2 {[%emt 0:00:01]} Qg6 {[%emt 0:00:36]} 31. Qxg6+ {[%emt 0:02:34]} hxg6 {[%emt 0:00:01]} 32. Kh3 {[%emt 0:01:49]} Kg7 {[%emt 0:00:48]} 33. axb5 {[%emt 0:02:44]} axb5 {[%emt 0:00:21]} 34. d5 {[%emt 0:01:28]} cxd5 {[%emt 0:00:08]} 35. Bxd5 {[%emt 0:00:10]} Rd8 {[%emt 0:00:57]} 36. Be4 {[%emt 0:02:46]} f5 {[%emt 0:00:51]} 37. Bd3 {[%emt 0:00:16]} b4 {[%emt 0:00:34]} 38. Bb6 {[%emt 0:01:35]} Rd5 {[%emt 0:01:35]} 39. Bc4 {[%emt 0:03:07]} Rd2 {[%emt 0:00:44]} 40. Bb3 {[%emt 0:00:44]} Re2 {[%emt 0:00:40]} 41. Bc5 {[%emt 0:36:07]} Re4 {[%emt 0:31:12]} 42. Bd5 {[%emt 0:00:41]} Rg4 {[%emt 0:00:00]} 43. b3 {[%emt 0:00:00]} g5 {[%emt 0:00:00]} 44. Bc4 {[%emt 0:00:00]} Rh4+ {[%emt 0:00:00]} 45. Kg2 {[%emt 0:00:00]} g4 {[%emt 0:00:00]} 46. Bxb4 {[%emt 0:00:00]} Rh3 {[%emt 0:00:00]} 47. Bd6 {[%emt 0:00:00]} Kf6 {[%emt 0:00:00]} 48. Bd5 {[%emt 0:00:00]} Rc3 {[%emt 0:00:00]} 49. Bf4 {[%emt 0:02:45]} Rxc2+ {[%emt 0:00:00]} 50. Kf1 {[%emt 0:01:35]} Rc3 {[%emt 0:00:00]} 51. Ke2 {[%emt 0:01:08]} Kg6 {[%emt 0:00:00]} 52. b4 {[%emt 0:01:19]} Rc2+ {[%emt 0:00:00]} 53. Kd3 {[%emt 0:01:00]} Rb2 {[%emt 0:00:00]} 54. Kc3 {[%emt 0:02:15]} Rb1 {[%emt 0:00:00]} 55. Kc4 {[%emt 0:01:54]} Rf1 {[%emt 0:00:00]} 56. Bg3 {[%emt 0:00:40]} f4 {[%emt 0:00:00]} 57. Bxf4 {[%emt 0:00:46]} Rxf4+ {[%emt 0:00:00]} 58. Kc5 {[%emt 0:00:13]} Rxb4 {[%emt 0:00:21]} 1/2-1/2

[Event "CZE-ch U16 Girls 2023"]
[Site "Teplice"]
[Date "2023.03.16"]
[Round "7.6"]
[White "Dominikova, Denisa"]
[Black "Hetfleischova, Elen"]
[Result "0-1"]
[ECO "B33"]
[WhiteElo "1301"]
[BlackElo "1623"]
[Annotator "NA RC COMBH"]
[PlyCount "63"]
[EventDate "2023.03.09"]
[EventType "swiss"]
[EventCountry "CZE"]
[SourceTitle "playchess.com"]
[Source "ChessBase"]
[SourceQuality "1"]
[TimeControl "40/5400+30:1800+30"]

1. e4 {[%emt 0:00:04]} c5 {[%emt 0:00:03]} 2. Nf3 {[%emt 0:00:19]} Nc6 {[%emt 0:00:03]} 3. d4 {[%emt 0:00:31]} cxd4 {[%emt 0:00:05]} 4. Nxd4 {[%emt 0:00:28]} Nf6 {[%emt 0:00:17]} 5. Nc3 {[%emt 0:01:26]} e6 {[%emt 0:00:05]} 6. Be2 {[%emt 0:09:54]} Bb4 {[%emt 0:01:49]} 7. f3 {[%emt 0:06:36]} d5 {[%emt 0:01:35]} 8. Nxc6 {[%emt 0:03:38]} bxc6 {[%emt 0:00:20]} 9. exd5 {[%emt 0:10:34]} Nxd5 {[%emt 0:06:49]} 10. Bd2 {[%emt 0:00:49]} Nxc3 {[%emt 0:08:11]} 11. bxc3 {[%emt 0:01:08]} Bc5 {[%emt 0:04:43]} 12. Bd3 {[%emt 0:02:22]} Qh4+ {[%emt 0:07:19]} 13. g3 {[%emt 0:00:42]} Qf6 {[%emt 0:01:22]} 14. Qe2 {[%emt 0:03:15]} O-O {[%emt 0:02:54]} 15. Qe4 {[%emt 0:09:37]} Qf5 {[%emt 0:02:57]} 16. Qxc6 {[%emt 0:08:09]} Qe5+ {[%emt 0:00:22]} 17. Kd1 {[%emt 0:04:33]} Rb8 {[%emt 0:03:00]} 18. Re1 {[%emt 0:03:22]} Qh5 {[%emt 0:03:43]} 19. g4 {[%emt 0:10:29]} Qd5 {[%emt 0:01:41]} 20. Qxd5 {[%emt 0:00:31]} exd5 {[%emt 0:00:04]} 21. Re5 {[%emt 0:02:07]} Be6 {[%emt 0:01:49]} 22. Rh5 {[%emt 0:02:45]} g6 {[%emt 0:02:09]} 23. Re5 {[%emt 0:00:59]} Bd6 {[%emt 0:01:28]} 24. Re2 {[%emt 0:00:20]} Rb7 {[%emt 0:05:15]} 25. h4 {[%emt 0:04:08]} Rfb8 {[%emt 0:04:02]} 26. Re1 {[%emt 0:01:29]} Bg3 {[%emt 0:03:18]} 27. Rh1 {[%emt 0:01:05]} Rb1+ {[%emt 0:01:23]} 28. Ke2 {[%emt 0:00:22]} Rxa1 {[%emt 0:01:59]} 29. Rxa1 {[%emt 0:00:06]} Bxh4 {[%emt 0:01:10]} 30. Ke3 {[%emt 0:04:26]} Re8 {[%emt 0:03:02]} 31. Bb5 {[%emt 0:02:34]} Bd7+ {[%emt 0:02:23]} 32. Kd4 0-1

[Event "CZE-ch U16 Girls 2023"]
[Site "Teplice"]
[Date "2023.03.16"]
[Round "7.7"]
[White "Hrbkova, Johana"]
[Black "Sikorova, Jana"]
[Result "0-1"]
[ECO "B22"]
[WhiteElo "1254"]
[BlackElo "1735"]
[Annotator "NA RC COMBH"]
[PlyCount "72"]
[EventDate "2023.03.09"]
[EventType "swiss"]
[EventCountry "CZE"]
[SourceTitle "playchess.com"]
[Source "ChessBase"]
[SourceQuality "1"]
[TimeControl "40/5400+30:1800+30"]

1. e4 {[%emt 0:04:43]} c5 {[%emt 0:00:11]} 2. c3 {[%emt 0:00:19]} d5 {[%emt 0:00:27]} 3. exd5 {[%emt 0:00:12]} Qxd5 {[%emt 0:00:31]} 4. d4 {[%emt 0:00:22]} e6 {[%emt 0:00:41]} 5. Nf3 {[%emt 0:01:48]} Nf6 {[%emt 0:01:13]} 6. Bd3 {[%emt 0:05:00]} cxd4 {[%emt 0:01:44]} 7. cxd4 {[%emt 0:01:07]} Nc6 {[%emt 0:02:11]} 8. Nc3 {[%emt 0:04:45]} Qd8 {[%emt 0:01:25]} 9. O-O {[%emt 0:03:41]} Be7 {[%emt 0:01:46]} 10. Bf4 {[%emt 0:12:41]} O-O {[%emt 0:03:04]} 11. Re1 {[%emt 0:11:48]} b6 {[%emt 0:03:43]} 12. Re2 {[%emt 0:06:33]} Bb7 {[%emt 0:02:59]} 13. Rd2 {[%emt 0:01:17]} Nb4 {[%emt 0:02:17]} 14. Bb1 {[%emt 0:03:58]} Nbd5 {[%emt 0:04:03]} 15. Nxd5 {[%emt 0:02:59]} Bxd5 {[%emt 0:00:52]} 16. Ne5 {[%emt 0:03:23]} Rc8 {[%emt 0:03:21]} 17. Bd3 {[%emt 0:05:04]} Ne4 {[%emt 0:05:50]} 18. Re2 {[%emt 0:01:43]} Nd6 {[%emt 0:02:03]} 19. Re3 {[%emt 0:02:52]} Nf5 {[%emt 0:16:21]} 20. Rh3 {[%emt 0:02:04]} g6 {[%emt 0:02:39]} 21. Qg4 {[%emt 0:12:03]} Bf6 {[%emt 0:03:40]} 22. Rh5 {[%emt 0:01:39]} Bg7 {[%emt 0:03:24]} 23. Rh3 {[%emt 0:05:00]} Bb7 {[%emt 0:01:51]} 24. Nf3 {[%emt 0:04:09]} h5 {[%emt 0:08:31]} 25. Rxh5 {[%emt 0:01:35]} gxh5 {[%emt 0:00:51]} 26. Qxh5 {[%emt 0:00:19]} Bxf3 {[%emt 0:00:28]} 27. Qxf3 {[%emt 0:02:06]} Qxd4 {[%emt 0:01:04]} 28. g4 {[%emt 0:00:41]} Nh4 {[%emt 0:01:00]} 29. Qg3 {[%emt 0:00:27]} Rfd8 {[%emt 0:00:54]} 30. Rd1 {[%emt 0:00:21]} Ng6 {[%emt 0:01:14]} 31. Bg5 {[%emt 0:00:48]} Rd5 {[%emt 0:01:14]} 32. h4 {[%emt 0:00:21]} Qxb2 {[%emt 0:00:56]} 33. Rd2 {[%emt 0:00:39]} Qc1+ {[%emt 0:00:59]} 34. Kg2 {[%emt 0:00:25]} Rxg5 {[%emt 0:01:37]} 35. h5 {[%emt 0:00:34]} Qxd2 {[%emt 0:01:03]} 36. hxg6 {[%emt 0:00:21]} f5 {[%emt 0:02:23]} 0-1

[Event "CZE-ch U16 Girls 2023"]
[Site "Teplice"]
[Date "2023.03.16"]
[Round "7.8"]
[White "Barteckova, Denisa"]
[Black "Reznickova, Sibyla"]
[Result "0-1"]
[ECO "C53"]
[WhiteElo "1417"]
[BlackElo "1386"]
[Annotator "NA RC COMBH"]
[PlyCount "62"]
[EventDate "2023.03.09"]
[EventType "swiss"]
[EventCountry "CZE"]
[SourceTitle "playchess.com"]
[Source "ChessBase"]
[SourceQuality "1"]
[TimeControl "40/5400+30:1800+30"]

1. e4 {[%emt 0:00:04]} e5 {[%emt 0:00:09]} 2. Nf3 {[%emt 0:00:04]} Nc6 {[%emt 0:00:10]} 3. Bc4 {[%emt 0:00:09]} Bc5 {[%emt 0:00:16]} 4. c3 {[%emt 0:00:23]} d6 {[%emt 0:00:37]} 5. h3 {[%emt 0:00:18]} Nf6 {[%emt 0:00:37]} 6. d3 {[%emt 0:00:07]} O-O {[%emt 0:00:20]} 7. a4 {[%emt 0:00:08]} a5 {[%emt 0:00:57]} 8. O-O {[%emt 0:01:33]} Be6 {[%emt 0:01:35]} 9. Bxe6 {[%emt 0:03:12]} fxe6 {[%emt 0:00:10]} 10. Re1 {[%emt 0:01:03]} Qe8 {[%emt 0:03:44]} 11. Be3 {[%emt 0:01:23]} Bb6 {[%emt 0:01:44]} 12. Qb3 {[%emt 0:01:25]} Bxe3 {[%emt 0:01:56]} 13. fxe3 {[%emt 0:01:45]} b6 {[%emt 0:00:24]} 14. Na3 {[%emt 0:01:16]} Nh5 {[%emt 0:02:47]} 15. Nh2 {[%emt 0:12:00]} Ng3 {[%emt 0:03:44]} 16. Nb5 {[%emt 0:01:04]} Qf7 {[%emt 0:03:21]} 17. Qc2 {[%emt 0:00:51]} Rac8 {[%emt 0:01:47]} 18. Nf1 {[%emt 0:01:40]} Qg6 {[%emt 0:03:50]} 19. Kh2 {[%emt 0:01:42]} Nh5 {[%emt 0:03:04]} 20. g4 {[%emt 0:04:55]} Nf6 {[%emt 0:01:50]} 21. Ng3 {[%emt 0:00:14]} Rf7 {[%emt 0:02:26]} 22. Qe2 {[%emt 0:01:11]} Ne7 {[%emt 0:06:09]} 23. b4 {[%emt 0:05:56]} d5 {[%emt 0:00:53]} 24. Qg2 {[%emt 0:02:37]} Rcf8 {[%emt 0:05:04]} 25. Re2 {[%emt 0:00:37]} Qh6 {[%emt 0:04:10]} 26. Kg1 {[%emt 0:00:10]} Ng6 {[%emt 0:02:18]} 27. Rf1 {[%emt 0:04:31]} Nh4 {[%emt 0:02:33]} 28. Qh1 {[%emt 0:00:09]} Qg5 {[%emt 0:02:04]} 29. bxa5 {[%emt 0:01:55]} bxa5 {[%emt 0:00:14]} 30. c4 dxc4 31. dxc4 {[%emt 0:00:25]} h5 {[%emt 0:01:23]} 0-1

[Event "CZE-ch U16 Girls 2023"]
[Site "Teplice"]
[Date "2023.03.16"]
[Round "7.9"]
[White "Vavrinkova, Marie"]
[Black "Mullerova, Karina Nela"]
[Result "1-0"]
[ECO "C00"]
[WhiteElo "1457"]
[BlackElo "1283"]
[Annotator "NA RC COMBH"]
[PlyCount "91"]
[EventDate "2023.03.09"]
[EventType "swiss"]
[EventCountry "CZE"]
[SourceTitle "playchess.com"]
[Source "ChessBase"]
[SourceQuality "1"]
[TimeControl "40/5400+30:1800+30"]

1. e4 {[%emt 0:00:02]} e6 {[%emt 0:01:28]} 2. d3 {[%emt 0:00:36]} d5 {[%emt 0:00:59]} 3. Nd2 {[%emt 0:00:21]} c5 {[%emt 0:01:26]} 4. g3 {[%emt 0:00:43]} Nc6 {[%emt 0:04:09]} 5. Bg2 {[%emt 0:01:29]} Bd6 {[%emt 0:02:42]} 6. exd5 {[%emt 0:02:10]} exd5 {[%emt 0:04:06]} 7. Bxd5 {[%emt 0:01:51]} Nge7 {[%emt 0:02:14]} 8. Bg2 {[%emt 0:01:13]} O-O {[%emt 0:01:46]} 9. Ngf3 {[%emt 0:01:34]} Bg4 {[%emt 0:01:51]} 10. O-O {[%emt 0:03:27]} Ng6 {[%emt 0:01:24]} 11. h3 {[%emt 0:02:07]} Be6 {[%emt 0:04:03]} 12. Ne4 {[%emt 0:04:36]} Be7 {[%emt 0:00:34]} 13. Be3 {[%emt 0:01:01]} b6 {[%emt 0:01:00]} 14. Nh2 {[%emt 0:06:07]} f5 {[%emt 0:05:12]} 15. Nxc5 {[%emt 0:06:15]} bxc5 {[%emt 0:03:49]} 16. Bxc6 {[%emt 0:00:57]} Rc8 {[%emt 0:01:19]} 17. Bg2 {[%emt 0:01:14]} f4 {[%emt 0:01:07]} 18. Bd2 {[%emt 0:01:32]} fxg3 {[%emt 0:01:12]} 19. fxg3 {[%emt 0:00:44]} Qd4+ {[%emt 0:00:43]} 20. Kh1 {[%emt 0:00:35]} Qxb2 {[%emt 0:02:44]} 21. Qe1 {[%emt 0:02:38]} Rxf1+ {[%emt 0:01:59]} 22. Nxf1 {[%emt 0:00:46]} Qf6 {[%emt 0:14:23]} 23. Bc3 {[%emt 0:02:50]} Qf7 {[%emt 0:00:23]} 24. Ne3 {[%emt 0:07:57]} Bd6 {[%emt 0:02:12]} 25. Rb1 {[%emt 0:02:17]} Bxa2 {[%emt 0:09:56]} 26. Ba5 {[%emt 0:13:05]} Rb8 {[%emt 0:20:15]} 27. Rxb8+ {[%emt 0:01:56]} Bxb8 {[%emt 0:00:36]} 28. c4 {[%emt 0:01:13]} Qe8 {[%emt 0:00:52]} 29. Qf2 {[%emt 0:06:04]} Bb3 {[%emt 0:02:27]} 30. Bd5+ {[%emt 0:02:01]} Kh8 {[%emt 0:00:48]} 31. Ng4 {[%emt 0:08:58]} Qf8 {[%emt 0:01:49]} 32. Qe3 {[%emt 0:04:28]} Bd6 {[%emt 0:02:51]} 33. Bc3 {[%emt 0:01:31]} Ba4 {[%emt 0:01:19]} 34. Nh6 {[%emt 0:00:48]} Be8 {[%emt 0:00:57]} 35. Kg2 {[%emt 0:02:21]} Qe7 {[%emt 0:00:12]} 36. Bxg7+ {[%emt 0:01:43]} Qxg7 {[%emt 0:01:12]} 37. Qxe8+ {[%emt 0:00:08]} Qf8 {[%emt 0:00:45]} 38. Nf7+ {[%emt 0:01:18]} Kg7 {[%emt 0:00:56]} 39. Qd7 {[%emt 0:01:58]} Be7 {[%emt 0:01:06]} 40. Qxa7 {[%emt 0:01:45]} Nh8 {[%emt 0:00:41]} 41. Ng5 {[%emt 0:35:51]} Kh6 {[%emt 0:31:02]} 42. Ne6 {[%emt 0:00:00]} Qf6 {[%emt 0:00:00]} 43. Qa2 {[%emt 0:00:00]} Qc3 {[%emt 0:00:00]} 44. Qf2 {[%emt 0:00:00]} Ng6 {[%emt 0:00:00]} 45. Qe3+ {[%emt 0:00:00]} Kh5 {[%emt 0:00:00]} 46. Bf3# {[%emt 0:00:00]} 1-0

[Event "CZE-ch U16 Girls 2023"]
[Site "Teplice"]
[Date "2023.03.16"]
[Round "7.12"]
[White "Macova, Marketa"]
[Black "Foldynova, Julie"]
[Result "1/2-1/2"]
[ECO "C26"]
[WhiteElo "1195"]
[BlackElo "1100"]
[Annotator "NA RC COMBH"]
[PlyCount "99"]
[EventDate "2023.03.09"]
[EventType "swiss"]
[EventCountry "CZE"]
[SourceTitle "playchess.com"]
[Source "ChessBase"]
[SourceQuality "1"]
[TimeControl "40/5400+30:1800+30"]

1. e4 {[%emt 0:02:33]} e5 {[%emt 0:00:33]} 2. Nc3 {[%emt 0:00:21]} Nf6 {[%emt 0:00:57]} 3. f4 {[%emt 0:00:20]} d6 {[%emt 0:00:57]} 4. Nf3 {[%emt 0:00:58]} Qe7 {[%emt 0:03:19]} 5. Bc4 {[%emt 0:01:19]} Be6 {[%emt 0:00:44]} 6. Bxe6 {[%emt 0:00:23]} fxe6 {[%emt 0:00:51]} 7. fxe5 {[%emt 0:00:43]} dxe5 {[%emt 0:01:08]} 8. Nxe5 {[%emt 0:03:32]} g6 {[%emt 0:01:29]} 9. d3 {[%emt 0:02:29]} Nbd7 {[%emt 0:01:07]} 10. Nxd7 {[%emt 0:03:09]} Nxd7 {[%emt 0:01:57]} 11. Be3 {[%emt 0:02:11]} Bg7 {[%emt 0:02:14]} 12. Qd2 {[%emt 0:01:39]} O-O {[%emt 0:02:22]} 13. O-O-O {[%emt 0:03:16]} a6 {[%emt 0:01:19]} 14. h4 b5 {[%emt 0:02:00]} 15. Bh6 {[%emt 0:06:49]} Rfb8 {[%emt 0:02:58]} 16. h5 {[%emt 0:04:23]} Bxh6 {[%emt 0:02:09]} 17. Qxh6 {[%emt 0:00:31]} g5 {[%emt 0:01:55]} 18. Rhf1 {[%emt 0:05:34]} Rf8 {[%emt 0:05:12]} 19. d4 {[%emt 0:06:17]} Rae8 {[%emt 0:08:54]} 20. Ne2 {[%emt 0:04:31]} Kh8 {[%emt 0:10:08]} 21. e5 {[%emt 0:05:05]} c5 {[%emt 0:03:29]} 22. Rfe1 {[%emt 0:06:03]} Qg7 {[%emt 0:02:26]} 23. Qxg7+ {[%emt 0:00:43]} Kxg7 {[%emt 0:00:08]} 24. g4 {[%emt 0:02:28]} cxd4 {[%emt 0:00:48]} 25. Nxd4 {[%emt 0:03:22]} Nc5 {[%emt 0:02:45]} 26. Rf1 {[%emt 0:03:10]} Rf7 {[%emt 0:06:07]} 27. Rxf7+ {[%emt 0:02:25]} Kxf7 {[%emt 0:00:32]} 28. Rf1+ {[%emt 0:01:29]} Kg8 {[%emt 0:02:31]} 29. Kd2 {[%emt 0:02:34]} Nd7 {[%emt 0:02:40]} 30. Nf3 {[%emt 0:03:06]} h6 {[%emt 0:02:32]} 31. Ke3 {[%emt 0:01:44]} Nc5 {[%emt 0:01:51]} 32. Kd4 {[%emt 0:02:06]} Nd7 {[%emt 0:02:06]} 33. b3 {[%emt 0:02:48]} Rd8 {[%emt 0:01:53]} 34. Kc3 {[%emt 0:03:22]} a5 {[%emt 0:01:20]} 35. a3 {[%emt 0:01:36]} Rc8+ {[%emt 0:01:02]} 36. Kb2 {[%emt 0:01:04]} Rc5 {[%emt 0:01:36]} 37. Re1 {[%emt 0:01:40]} b4 {[%emt 0:01:21]} 38. axb4 {[%emt 0:00:42]} axb4 {[%emt 0:00:11]} 39. Re4 {[%emt 0:01:49]} Rb5 {[%emt 0:02:15]} 40. c3 {[%emt 0:00:34]} bxc3+ {[%emt 0:00:52]} 41. Kxc3 {[%emt 0:30:28]} Rxb3+ {[%emt 0:30:20]} 42. Kxb3 {[%emt 0:00:27]} Nc5+ {[%emt 0:00:08]} 43. Kc4 {[%emt 0:01:44]} Nxe4 {[%emt 0:00:15]} 44. Kd4 {[%emt 0:00:00]} Nf2 {[%emt 0:00:00]} 45. Nh2 {[%emt 0:00:00]} Kf7 {[%emt 0:00:00]} 46. Kc5 {[%emt 0:00:00]} Ke7 {[%emt 0:00:00]} 47. Kc6 {[%emt 0:00:00]} Nd3 {[%emt 0:00:00]} 48. Nf3 {[%emt 0:00:00]} Nf2 {[%emt 0:00:00]} 49. Nh2 {[%emt 0:00:00]} Nd3 {[%emt 0:00:00]} 50. Nf3 {[%emt 0:00:00]} 1/2-1/2

[Event "CZE-ch U16 Girls 2023"]
[Site "Teplice"]
[Date "2023.03.17"]
[Round "8.1"]
[White "Zelbova, Lada"]
[Black "Vacekova, Anita"]
[Result "1-0"]
[ECO "D01"]
[WhiteElo "1822"]
[BlackElo "1350"]
[Annotator "NA RC COMBH"]
[PlyCount "107"]
[EventDate "2023.03.09"]
[EventType "swiss"]
[EventCountry "CZE"]
[SourceTitle "playchess.com"]
[Source "ChessBase"]
[SourceQuality "1"]
[TimeControl "40/5400+30:1800+30"]

1. d4 {[%emt 0:00:03]} d5 {[%emt 0:00:11]} 2. Nc3 {[%emt 0:00:06]} Nf6 {[%emt 0:01:03]} 3. Bg5 {[%emt 0:00:17]} Nbd7 {[%emt 0:05:17]} 4. f3 {[%emt 0:03:47]} h6 {[%emt 0:02:45]} 5. Bh4 {[%emt 0:01:49]} g5 {[%emt 0:03:24]} 6. Bf2 {[%emt 0:05:43]} e6 {[%emt 0:02:21]} 7. Qd2 {[%emt 0:07:42]} Nb6 {[%emt 0:05:20]} 8. e4 {[%emt 0:04:30]} dxe4 {[%emt 0:12:47]} 9. fxe4 {[%emt 0:03:45]} Bb4 {[%emt 0:03:05]} 10. Bd3 {[%emt 0:01:25]} Na4 {[%emt 0:08:26]} 11. a3 {[%emt 0:09:15]} Nxc3 {[%emt 0:14:20]} 12. bxc3 {[%emt 0:00:59]} ({But not} 12. axb4 $6 Ncxe4 13. Qe3 Nxf2 14. Qxf2 Nd5 $11) 12... Ba5 {[%emt 0:01:07]} 13. Nf3 {[%emt 0:02:42]} b6 {[%emt 0:06:52]} 14. Ne5 {[%emt 0:05:52]} c5 {[%emt 0:15:43]} 15. Nc6 {[%emt 0:07:27]} Qc7 {[%emt 0:01:01]} 16. Nxa5 {[%emt 0:00:45]} bxa5 {[%emt 0:00:32]} 17. dxc5 {[%emt 0:02:34]} Bb7 {[%emt 0:02:08]} (17... Rb8 $142 18. Rf1 Nh5) 18. Qe2 {[%emt 0:02:55]} Nd7 {[%emt 0:03:38]} 19. O-O {[%emt 0:09:19]} Nxc5 {[%emt 0:02:53]} 20. Bb5+ {[%emt 0:02:13]} ({Better is} 20. Bg3 $18 Qd7 21. Be5) 20... Nd7 {[%emt 0:00:48]} 21. Rad1 {[%emt 0:04:56]} Bc6 {[%emt 0:01:34]} 22. Bd4 {[%emt 0:02:38]} Bxb5 {[%emt 0:03:29]} 23. Qxb5 {[%emt 0:00:30]} Rg8 {[%emt 0:00:40]} 24. Kh1 {[%emt 0:02:27]} a6 {[%emt 0:01:17]} 25. Qd3 {[%emt 0:00:41]} e5 {[%emt 0:00:33]} 26. Be3 {[%emt 0:01:03]} Rc8 {[%emt 0:00:52]} 27. c4 {[%emt 0:01:44]} Nf8 {[%emt 0:01:48]} 28. Qd5 {[%emt 0:00:47]} (28. c5 $16) 28... Rg6 {[%emt 0:02:10]} 29. Rd3 $2 {[%emt 0:03:02]} (29. Bc5 $1 $18) 29... Rd8 {[%emt 0:01:18]} (29... Rc6 $14) 30. Qxd8+ {[%emt 0:02:22]} Qxd8 {[%emt 0:00:08]} 31. Rxd8+ {[%emt 0:00:08]} Kxd8 {[%emt 0:00:04]} 32. Rxf7 {[%emt 0:00:28]} Nd7 {[%emt 0:00:32]} 33. Kg1 {[%emt 0:02:22]} Nf6 {[%emt 0:01:59]} 34. Bb6+ {[%emt 0:02:42]} Ke8 {[%emt 0:01:02]} 35. Rc7 {[%emt 0:00:50]} a4 {[%emt 0:01:00]} 36. c5 {[%emt 0:00:47]} Nxe4 {[%emt 0:01:40]} 37. g3 {[%emt 0:01:56]} Nc3 {[%emt 0:01:46]} 38. c6 {[%emt 0:00:40]} Nd5 {[%emt 0:00:30]} 39. Rc8+ {[%emt 0:00:24]} Kf7 {[%emt 0:00:38]} 40. Bc5 {[%emt 0:01:19]} e4 {[%emt 0:01:30]} 41. c7 {[%emt 0:32:30]} Nxc7 {[%emt 0:05:41]} 42. Rxc7+ {[%emt 0:00:00]} Kf6 {[%emt 0:00:55]} 43. Rc6+ Kf7 {[%emt 0:00:15]} 44. Rxg6 {[%emt 0:00:00]} Kxg6 {[%emt 0:00:04]} 45. g4 {[%emt 0:00:00]} h5 {[%emt 0:00:29]} 46. h3 {[%emt 0:00:00]} hxg4 {[%emt 0:00:11]} 47. hxg4 {[%emt 0:00:00]} Kf6 {[%emt 0:00:05]} 48. Be3 {[%emt 0:00:00]} Ke5 {[%emt 0:00:42]} 49. c4 {[%emt 0:00:00]} Kd6 {[%emt 0:00:13]} 50. Kf2 {[%emt 0:00:00]} Ke5 {[%emt 0:00:11]} 51. Ke2 {[%emt 0:00:00]} Kd6 {[%emt 0:00:04]} 52. Kd2 {[%emt 0:00:00]} a5 {[%emt 0:00:07]} 53. Kc3 {[%emt 0:00:00]} Ke5 {[%emt 0:00:04]} 54. Bxg5 {[%emt 0:00:00]} 1-0